fUSD/lending_fUSD_20250113
["ID","MTS","AMOUNT","RATE_DAILY","PERIOD"]
[348724132,1736753434908,-500.0,9.898e-05,2]
[348724133,1736753434922,-500.0,9.898e-05,2]
[348724134,1736753434935,-500.0,9.898e-05,2]
[348724135,1736753434946,-500.0,9.898e-05,2]
[348724136,1736753434958,-500.0,9.898e-05,2]
[348724137,1736753434970,-500.0,9.898e-05,2]
[348724138,1736753434981,-500.0,9.898e-05,2]
[348724139,1736753434992,-500.0,9.898e-05,2]
[348724140,1736753435004,-501.72998679,9.898e-05,2]
[348724141,1736753435015,-341.79239332,9.898e-05,2]
[348724142,1736753435026,-500.0,9.898e-05,2]
[348724143,1736753435037,-503.98186892,9.898e-05,2]
[348724144,1736753435048,-500.0,9.898e-05,2]
[348724145,1736753435060,-502.38791799,9.898e-05,2]
[348724146,1736753435071,-500.66521291,9.898e-05,2]
[348724147,1736753435082,-500.0,9.898e-05,2]
[348724148,1736753435094,-736.77,9.898e-05,2]
[348724149,1736753435105,-539.54,9.898e-05,2]
[348724150,1736753435116,-500.0,9.898e-05,2]
[348724151,1736753435127,-501.31109688,9.898e-05,2]
[348724152,1736753435138,-500.0,9.898e-05,2]
[348724153,1736753435149,-500.0,9.898e-05,2]
[348724154,1736753435161,-501.36193112,9.898e-05,2]
[348724155,1736753435173,-500.0,9.898e-05,2]
[348724156,1736753435185,-500.0,9.898e-05,2]
[348724157,1736753435196,-330.14440531,9.898e-05,2]
[348724158,1736753435207,-652.55,9.898e-05,2]
[348724159,1736753435219,-500.61835154,9.898e-05,2]
[348724160,1736753435230,-500.0,9.898e-05,2]
[348724161,1736753435240,-500.0,9.898e-05,2]
[348724162,1736753435251,-500.0,9.898e-05,2]
[348724163,1736753435263,-500.0,9.898e-05,2]
[348724164,1736753435274,-500.0,9.898e-05,2]
[348724165,1736753435285,-500.0,9.898e-05,2]
[348724166,1736753435296,-500.48613026,9.898e-05,2]
[348724167,1736753435307,-500.0,9.898e-05,2]
[348724168,1736753435320,-500.7183191,9.898e-05,2]
[348724169,1736753435331,-500.0,9.898e-05,2]
[348724170,1736753435341,-500.61263082,9.898e-05,2]
[348724171,1736753435351,-500.0,9.898e-05,2]
[348724172,1736753435362,-501.44464057,9.898e-05,2]
[348724173,1736753435373,-500.0,9.898e-05,2]
[348724174,1736753435383,-533.0958594,9.898e-05,2]
[348724175,1736753435394,-500.0,9.898e-05,2]
[348724176,1736753435405,-500.0,9.898e-05,2]
[348724177,1736753435417,-500.0,9.898e-05,2]
[348724178,1736753435427,-503.12119053,9.898e-05,2]
[348724179,1736753435438,-500.0,9.898e-05,2]
[348724180,1736753435448,-500.0,9.898e-05,2]
[348724181,1736753435459,-500.0,9.898e-05,2]
[348724182,1736753435471,-501.36866716,9.898e-05,2]
[348724183,1736753435481,-500.0,9.898e-05,2]
[348724184,1736753435491,-500.0,9.898e-05,2]
[348724185,1736753435501,-500.0,9.898e-05,2]
[348724186,1736753435512,-500.0,9.898e-05,2]
[348724187,1736753435523,-500.0,9.898e-05,2]
[348724188,1736753435534,-500.0,9.898e-05,2]
[348724189,1736753435544,-503.26838926,9.898e-05,2]
[348724190,1736753435894,-500.0,9.898e-05,2]
[348724191,1736753435905,-604.13,9.898e-05,2]
[348724192,1736753435918,-505.43228861,9.898e-05,2]
[348724193,1736753435927,-500.0,9.898e-05,2]
[348724194,1736753435937,-504.20403246,9.898e-05,2]
[348724195,1736753435947,-500.0,9.898e-05,2]
[348724196,1736753435957,-500.0,9.898e-05,2]
[348724197,1736753435967,-500.0,9.898e-05,2]
[348724198,1736753435977,-500.0,9.898e-05,2]
[348724199,1736753435986,-564.45,9.898e-05,2]
[348724200,1736753435996,-501.65214145,9.898e-05,2]
[348724201,1736753436008,-508.05711859,9.898e-05,2]
[348724202,1736753436018,-500.0,9.898e-05,2]
[348724203,1736753436028,-500.0,9.898e-05,2]
[348724204,1736753436037,-500.0,9.898e-05,2]
[348724205,1736753436047,-502.70066799,9.898e-05,2]
[348724206,1736753436057,-500.0,9.898e-05,2]
[348724207,1736753436067,-500.0,9.898e-05,2]
[348724208,1736753436077,-519.95786939,9.898e-05,2]
[348724209,1736753436086,-501.51592751,9.898e-05,2]
[348724210,1736753436096,-500.0,9.898e-05,2]
[348724211,1736753436105,-500.0,9.898e-05,2]
[348724212,1736753436115,-500.0,9.898e-05,2]
[348724213,1736753436124,-500.0,9.898e-05,2]
[348724214,1736753436135,-500.0,9.898e-05,2]
[348724215,1736753436145,-500.0,9.898e-05,2]
[348724216,1736753436155,-500.0,9.898e-05,2]
[348724217,1736753436165,-500.0,9.898e-05,2]
[348724218,1736753436178,-500.0,9.898e-05,2]
[348724219,1736753436187,-500.0,9.898e-05,2]
[348724220,1736753436196,-500.0,9.898e-05,2]
[348724221,1736753436206,-500.0,9.898e-05,2]
[348724222,1736753436216,-500.0,9.898e-05,2]
[348724223,1736753436225,-500.0,9.898e-05,2]
[348724224,1736753436235,-502.64335187,9.898e-05,2]
[348724225,1736753436245,-500.0,9.898e-05,2]
[348724226,1736753436254,-500.0,9.898e-05,2]
[348724227,1736753436264,-709.36,9.898e-05,2]
[348724228,1736753436273,-500.0,9.898e-05,2]
[348724229,1736753436283,-500.0,9.898e-05,2]
[348724230,1736753436293,-581.14434668,9.898e-05,2]
[348724231,1736753436302,-500.0,9.898e-05,2]
[348724232,1736753436312,-500.0,9.898e-05,2]
[348724233,1736753436321,-500.0,9.898e-05,2]
[348724234,1736753436331,-500.0,9.898e-05,2]
[348724235,1736753436340,-599.4,9.898e-05,2]
[348724236,1736753436350,-499.99860152,9.898e-05,2]
[348724237,1736753436360,-500.0,9.898e-05,2]
[348724238,1736753436370,-500.0,9.898e-05,2]
[348724239,1736753436380,-502.49154743,9.898e-05,2]
[348724240,1736753436390,-500.0,9.898e-05,2]
[348724241,1736753436400,-500.0,9.898e-05,2]
[348724242,1736753436409,-502.16964848,9.898e-05,2]
[348724243,1736753436419,-500.0,9.898e-05,2]
[348724244,1736753436429,-500.0,9.898e-05,2]
[348724245,1736753436439,-500.0,9.898e-05,2]
[348724246,1736753436449,-561.85,9.898e-05,2]
[348724247,1736753436458,-500.0,9.898e-05,2]
[348724248,1736753436468,-500.0,9.898e-05,2]
[348724249,1736753436478,-500.0,9.898e-05,2]
[348724250,1736753436487,-500.0,9.898e-05,2]
[348724251,1736753436497,-500.0,9.898e-05,2]
[348724252,1736753436507,-500.0,9.898e-05,2]
[348724253,1736753436516,-570.48,9.898e-05,2]
[348724254,1736753436525,-500.0,9.898e-05,2]
[348724255,1736753436536,-500.0,9.898e-05,2]
[348724256,1736753436545,-500.0,9.898e-05,2]
[348724257,1736753436555,-500.0,9.898e-05,2]
[348724258,1736753436566,-500.0,9.898e-05,2]
[348724259,1736753436575,-500.0,9.898e-05,2]
[348724260,1736753436585,-500.0,9.898e-05,2]
[348724261,1736753436595,-500.0,9.898e-05,2]
[348724262,1736753436605,-500.0,9.898e-05,2]
[348724263,1736753436614,-500.0,9.898e-05,2]
[348724264,1736753436623,-500.79554837,9.898e-05,2]
[348724265,1736753436633,-500.0,9.898e-05,2]
[348724266,1736753436643,-640.54,9.898e-05,2]
[348724267,1736753436652,-586.66,9.898e-05,2]
[348724268,1736753436661,-500.0,9.898e-05,2]
[348724269,1736753436673,-386.46317796,9.898e-05,2]
[348724270,1736753436682,-500.0,9.898e-05,2]
[348724271,1736753436692,-500.0,9.898e-05,2]
[348724272,1736753436702,-500.0,9.898e-05,2]
[348724273,1736753436711,-500.0,9.898e-05,2]
[348724274,1736753436720,-500.0,9.898e-05,2]
[348724275,1736753436729,-500.0,9.898e-05,2]
[348724276,1736753436739,-500.0,9.898e-05,2]
[348724277,1736753436748,-500.0,9.898e-05,2]
[348724278,1736753436758,-500.0,9.898e-05,2]
[348724279,1736753436768,-500.0,9.898e-05,2]
[348724280,1736753436777,-554.68217707,9.898e-05,2]
[348724281,1736753436786,-500.0,9.898e-05,2]
[348724282,1736753436796,-500.0,9.898e-05,2]
[348724283,1736753436806,-520.27,9.898e-05,2]
[348724284,1736753436815,-534.14,9.898e-05,2]
[348724285,1736753436824,-500.0,9.898e-05,2]
[348724286,1736753436838,-500.0,9.898e-05,2]
[348724287,1736753436851,-501.04596101,9.898e-05,2]
[348724288,1736753436861,-500.0,9.898e-05,2]
[348724289,1736753436871,-887.37,9.898e-05,2]
[348724290,1736753436881,-500.0,9.898e-05,2]
[348724291,1736753436891,-648.15,9.898e-05,2]
[348724292,1736753436901,-500.0,9.898e-05,2]
[348724293,1736753436915,-500.0,9.898e-05,2]
[348724294,1736753436926,-524.1,9.898e-05,2]
[348724295,1736753436936,-500.0,9.898e-05,2]
[348724296,1736753436946,-500.0,9.898e-05,2]
[348724297,1736753436955,-500.0,9.898e-05,2]
[348724298,1736753436965,-1293.17,9.898e-05,2]
[348724299,1736753436975,-500.0,9.898e-05,2]
[348724300,1736753436984,-214.52501211,9.898e-05,2]
[348724301,1736753436994,-1000.0,9.898e-05,2]
[348724302,1736753437004,-500.0,9.898e-05,2]
[348724303,1736753437014,-2376.97,9.898e-05,2]
[348724304,1736753437024,-580.64,9.898e-05,2]
[348724305,1736753437034,-500.0,9.898e-05,2]
[348724306,1736753437044,-500.0,9.898e-05,2]
[348724307,1736753437054,-500.0,9.898e-05,2]
[348724308,1736753437064,-500.0,9.898e-05,2]
[348724309,1736753437074,-500.0,9.898e-05,2]
[348724310,1736753437084,-309.12160879,9.898e-05,2]
[348724311,1736753437094,-500.0,9.898e-05,2]
[348724312,1736753437104,-500.0,9.898e-05,2]
[348724313,1736753437113,-3658.15,9.898e-05,2]
[348724314,1736753437123,-500.0,9.898e-05,2]
[348724315,1736753437133,-500.0,9.898e-05,2]
[348724316,1736753437142,-500.0,9.898e-05,2]
[348724317,1736753437153,-2660.63,9.898e-05,2]
[348724318,1736753437162,-585.63,9.898e-05,2]
[348724319,1736753437173,-504.46809838,9.898e-05,2]
[348724320,1736753437182,-529.2,9.898e-05,2]
[348724321,1736753437192,-1693.35,9.898e-05,2]
[348724322,1736753437202,-500.0,9.898e-05,2]
[348724323,1736753437211,-500.0,9.898e-05,2]
[348724324,1736753437221,-2392.6,9.898e-05,2]
[348724325,1736753437230,-546.1,9.898e-05,2]
[348724326,1736753437239,-500.0,9.898e-05,2]
[348724327,1736753437249,-727.81,9.898e-05,2]
[348724328,1736753437258,-500.0,9.898e-05,2]
[348724329,1736753437267,-468.58084816,9.898e-05,2]
[348724330,1736753437277,-500.0,9.898e-05,2]
[348724331,1736753437286,-2101.79,9.898e-05,2]
[348724332,1736753437295,-500.0,9.898e-05,2]
[348724333,1736753437304,-522.61,9.898e-05,2]
[348724334,1736753437314,-500.0,9.898e-05,2]
[348724335,1736753437323,-500.0,9.898e-05,2]
[348724336,1736753437333,-979.98,9.898e-05,2]
[348724337,1736753437342,-500.0,9.898e-05,2]
[348724338,1736753437351,-2146.65,9.898e-05,2]
[348724339,1736753437362,-500.0,9.898e-05,2]
[348724340,1736753437372,-577.64,9.898e-05,2]
[348724341,1736753437381,-260.68827997,9.898e-05,2]
[348724342,1736753437391,-500.0,9.898e-05,2]
[348724343,1736753437400,-546.39,9.898e-05,2]
[348724344,1736753437409,-503.20446041,9.898e-05,2]
[348724345,1736753437419,-500.0,9.898e-05,2]
[348724346,1736753437428,-500.0,9.898e-05,2]
[348724347,1736753437438,-626.48,9.898e-05,2]
[348724348,1736753437448,-500.0,9.898e-05,2]
[348724349,1736753437458,-500.0,9.898e-05,2]
[348724350,1736753437468,-506.73976003,9.898e-05,2]
[348724351,1736753437477,-501.28644009,9.898e-05,2]
[348724352,1736753437488,-500.0,9.898e-05,2]
[348724353,1736753437499,-501.66468208,9.898e-05,2]
[348724354,1736753437509,-500.0,9.898e-05,2]
[348724355,1736753437519,-502.61094417,9.898e-05,2]
[348724356,1736753437533,-500.0,9.898e-05,2]
[348724357,1736753437542,-504.43759059,9.898e-05,2]
[348724358,1736753437551,-500.0,9.898e-05,2]
[348724359,1736753437561,-502.51109412,9.898e-05,2]
[348724360,1736753437570,-500.0,9.898e-05,2]
[348724361,1736753437580,-684.95,9.898e-05,2]
[348724362,1736753437590,-261.47395844,9.898e-05,2]
[348724363,1736753437600,-502.38220108,9.898e-05,2]
[348724364,1736753437610,-500.0,9.898e-05,2]
[348724365,1736753437620,-501.07473731,9.898e-05,2]
[348724366,1736753437630,-503.50957811,9.898e-05,2]
[348724367,1736753437640,-500.0,9.898e-05,2]
[348724368,1736753437650,-500.0,9.898e-05,2]
[348724369,1736753437659,-500.27513957,9.898e-05,2]
[348724370,1736753437668,-605.7,9.898e-05,2]
[348724371,1736753437677,-500.0,9.898e-05,2]
[348724372,1736753437687,-500.0,9.898e-05,2]
[348724373,1736753437696,-500.0,9.898e-05,2]
[348724374,1736753437706,-307.86466358,9.898e-05,2]
[348724375,1736753437715,-500.0,9.898e-05,2]
[348724376,1736753437726,-500.0,9.898e-05,2]
[348724377,1736753437735,-500.0,9.898e-05,2]
[348724378,1736753437745,-500.0,9.898e-05,2]
[348724379,1736753437755,-500.0,9.898e-05,2]
[348724380,1736753437765,-500.0,9.898e-05,2]
[348724381,1736753437776,-500.0,9.898e-05,2]
[348724382,1736753437787,-500.0,9.898e-05,2]
[348724383,1736753437797,-500.0,9.898e-05,2]
[348724384,1736753437807,-500.0,9.898e-05,2]
[348724385,1736753437817,-1005.42,9.898e-05,2]
[348724386,1736753437826,-500.0,9.898e-05,2]
[348724387,1736753437839,-94231.86840398,9.9e-05,2]
[348724388,1736753437849,-1000.0,9.9e-05,3]
[348724389,1736753437859,-154.43794347,9.9e-05,2]
[348724390,1736753437869,-154.43794347,9.949e-05,2]
[348724391,1736753437880,-33790.0,9.973e-05,2]
[348724392,1736753437890,-500.0,9.973e-05,2]
[348724393,1736753437900,-500.0,9.973e-05,2]
[348724394,1736753437911,-379.63337469,9.973e-05,2]
[348724395,1736753437922,-379.63337469,9.98e-05,2]
[348724396,1736753437932,-379.63337469,9.98e-05,2]
[348724397,1736753437942,-68791.02759345,9.98e-05,2]
[348724399,1736753437952,-379.63337469,9.99e-05,2]
[348724400,1736753437961,-379.63337469,9.991e-05,2]
[348724402,1736753437971,-379.63337469,9.991e-05,2]
[348724404,1736753437981,-4601.92155078,9.998e-05,2]
[348724405,1736753437993,-500.0,9.999e-05,2]
[348724406,1736753438003,-500.0,9.999e-05,2]
[348724407,1736753438013,-500.0,9.999e-05,2]
[348724408,1736753438023,-407.10128539,9.999e-05,2]
[348724409,1736753438034,-500.0,9.999e-05,2]
[348724410,1736753438043,-500.0,9.999e-05,2]
[348724411,1736753438054,-500.0,9.999e-05,2]
[348724412,1736753438064,-500.0,9.999e-05,2]
[348724414,1736753438074,-500.0,9.999e-05,2]
[348724415,1736753438084,-500.0,9.999e-05,2]
[348724416,1736753438095,-539.55,9.999e-05,2]
[348724417,1736753438106,-500.0,9.999e-05,2]
[348724418,1736753438116,-500.0,9.999e-05,2]
[348724419,1736753438130,-500.0,9.999e-05,2]
[348724420,1736753438140,-500.0,9.999e-05,2]
[348724421,1736753438150,-500.0,9.999e-05,2]
[348724422,1736753438160,-500.0,9.999e-05,2]
[348724423,1736753438171,-500.0,9.999e-05,2]
[348724424,1736753438181,-510.44701922,9.999e-05,2]
[348724425,1736753438191,-500.0,9.999e-05,2]
[348724426,1736753438200,-500.0,9.999e-05,2]
[348724427,1736753438210,-479.63581557,9.999e-05,2]
[348724428,1736753438224,-500.0,9.999e-05,2]
[348724429,1736753438234,-500.0,9.999e-05,2]
[348724430,1736753438244,-510.32905855,9.999e-05,2]
[348724431,1736753438254,-500.0,9.999e-05,2]
[348724432,1736753438264,-500.0,9.999e-05,2]
[348724433,1736753438274,-500.0,9.999e-05,2]
[348724434,1736753438284,-500.0,9.999e-05,2]
[348724435,1736753438293,-500.0,9.999e-05,2]
[348724436,1736753438303,-503.36453093,9.999e-05,2]
[348724437,1736753438312,-500.0,9.999e-05,2]
[348724438,1736753438322,-500.0,9.999e-05,2]
[348724439,1736753438333,-500.0,9.999e-05,2]
[348724440,1736753438342,-500.0,9.999e-05,2]
[348724441,1736753438352,-500.0,9.999e-05,2]
[348724442,1736753438362,-500.0,9.999e-05,2]
[348724443,1736753438372,-500.0,9.999e-05,2]
[348724444,1736753438382,-587.62162446,9.999e-05,2]
[348724445,1736753438392,-184.09617508,9.999e-05,2]
[348724446,1736753438402,-500.0,9.999e-05,2]
[348724447,1736753438411,-500.0,9.999e-05,2]
[348724448,1736753438421,-500.0,9.999e-05,2]
[348724449,1736753438431,-500.0,9.999e-05,2]
[348724450,1736753438441,-500.0,9.999e-05,2]
[348724451,1736753438452,-310.4343966,9.999e-05,2]
[348724452,1736753438462,-500.0,9.999e-05,2]
[348724453,1736753438471,-500.0,9.999e-05,2]
[348724454,1736753438482,-500.0,9.999e-05,2]
[348724455,1736753438493,-500.0,9.999e-05,2]
[348724456,1736753438503,-500.0,9.999e-05,2]
[348724457,1736753438513,-536.80714898,9.999e-05,2]
[348724458,1736753438522,-500.0,9.999e-05,2]
[348724459,1736753438532,-500.0,9.999e-05,2]
[348724460,1736753438542,-500.0,9.999e-05,2]
[348724461,1736753438552,-500.0,9.999e-05,2]
[348724462,1736753438562,-500.0,9.999e-05,2]
[348724463,1736753438572,-500.0,9.999e-05,2]
[348724464,1736753438581,-500.0,9.999e-05,2]
[348724465,1736753438591,-500.0,9.999e-05,2]
[348724466,1736753438601,-500.0,9.999e-05,2]
[348724467,1736753438611,-503.60797248,9.999e-05,2]
[348724468,1736753438620,-500.0,9.999e-05,2]
[348724469,1736753438630,-452.47443163,9.999e-05,2]
[348724470,1736753438640,-500.0,9.999e-05,2]
[348724471,1736753438650,-500.0,9.999e-05,2]
[348724472,1736753438660,-500.0,9.999e-05,2]
[348724473,1736753438671,-500.0,9.999e-05,2]
[348724474,1736753438681,-432.86316125,9.999e-05,2]
[348724475,1736753438690,-500.0,9.999e-05,2]
[348724476,1736753438700,-500.0,9.999e-05,2]
[348724477,1736753438709,-500.0,9.999e-05,2]
[348724478,1736753438719,-500.0,9.999e-05,2]
[348724479,1736753438729,-500.0,9.999e-05,2]
[348724480,1736753438739,-500.0,9.999e-05,2]
[348724481,1736753438749,-500.0,9.999e-05,2]
[348724482,1736753438759,-500.0,9.999e-05,2]
[348724483,1736753438769,-500.0,9.999e-05,2]
[348724484,1736753438779,-500.0,9.999e-05,2]
[348724486,1736753438789,-500.0,9.999e-05,2]
[348724487,1736753438798,-485.82,9.999e-05,2]
[348724488,1736753438808,-500.0,9.999e-05,2]
[348724490,1736753438817,-500.0,9.999e-05,2]
[348724491,1736753438829,-501.22075627,9.999e-05,2]
[348724493,1736753438841,-500.0,9.999e-05,2]
[348724495,1736753438851,-500.0,9.999e-05,2]
[348724497,1736753438861,-500.0,9.999e-05,2]
[348724498,1736753438870,-500.0,9.999e-05,2]
[348724500,1736753438882,-500.0,9.999e-05,2]
[348724502,1736753438892,-500.0,9.999e-05,2]
[348724504,1736753438902,-506.63050882,9.999e-05,2]
[348724506,1736753438912,-500.0,9.999e-05,2]
[348724508,1736753438923,-500.0,9.999e-05,2]
[348724511,1736753438933,-501.16727073,9.999e-05,2]
[348724513,1736753438943,-595.26,9.999e-05,2]
[348724514,1736753438953,-500.0,9.999e-05,2]
[348724516,1736753438963,-500.0,9.999e-05,2]
[348724519,1736753438972,-500.0,9.999e-05,2]
[348724525,1736753439173,-500.0,9.999e-05,2]
[348724526,1736753439183,-500.0,9.999e-05,2]
[348724527,1736753439194,-500.0,9.999e-05,2]
[348724528,1736753439203,-500.0,9.999e-05,2]
[348724529,1736753439213,-500.0,9.999e-05,2]
[348724530,1736753439223,-500.0,9.999e-05,2]
[348724531,1736753439233,-500.0,9.999e-05,2]
[348724532,1736753439243,-500.0,9.999e-05,2]
[348724533,1736753439252,-500.0,9.999e-05,2]
[348724534,1736753439263,-385.47315604,9.999e-05,2]
[348724535,1736753439274,-500.0,9.999e-05,2]
[348724536,1736753439284,-500.0,9.999e-05,2]
[348724537,1736753439294,-500.0,9.999e-05,2]
[348724538,1736753439303,-357.42731097,9.999e-05,2]
[348724539,1736753439312,-501.6426377,9.999e-05,2]
[348724540,1736753439322,-500.0,9.999e-05,2]
[348724541,1736753439332,-501.57416731,9.999e-05,2]
[348724542,1736753439341,-500.0,9.999e-05,2]
[348724543,1736753439351,-500.0,9.999e-05,2]
[348724544,1736753439360,-500.0,9.999e-05,2]
[348724545,1736753439369,-501.28719864,9.999e-05,2]
[348724546,1736753439379,-501.91431287,9.999e-05,2]
[348724547,1736753439390,-500.0,9.999e-05,2]
[348724548,1736753439399,-500.0,9.999e-05,2]
[348724549,1736753439409,-500.0,9.999e-05,2]
[348724550,1736753439418,-500.0,9.999e-05,2]
[348724551,1736753439429,-500.0,9.999e-05,2]
[348724552,1736753439438,-500.0,9.999e-05,2]
[348724553,1736753439448,-540.24285704,9.999e-05,2]
[348724554,1736753439458,-500.0,9.999e-05,2]
[348724555,1736753439467,-500.0,9.999e-05,2]
[348724556,1736753439477,-500.0,9.999e-05,2]
[348724557,1736753439487,-500.0,9.999e-05,2]
[348724558,1736753439496,-500.0,9.999e-05,2]
[348724559,1736753439505,-500.0,9.999e-05,2]
[348724560,1736753439515,-593.06709726,9.999e-05,2]
[348724561,1736753439524,-500.0,9.999e-05,2]
[348724562,1736753439533,-500.0,9.999e-05,2]
[348724563,1736753439543,-500.0,9.999e-05,2]
[348724564,1736753439553,-500.0,9.999e-05,2]
[348724565,1736753439562,-500.0,9.999e-05,2]
[348724566,1736753439572,-500.0,9.999e-05,2]
[348724567,1736753439583,-500.0,9.999e-05,2]
[348724568,1736753439592,-500.0,9.999e-05,2]
[348724569,1736753439602,-454.98434993,9.999e-05,2]
[348724570,1736753439611,-501.58407469,9.999e-05,2]
[348724571,1736753439621,-500.0,9.999e-05,2]
[348724572,1736753439630,-507.55465868,9.999e-05,2]
[348724573,1736753439639,-520.37,9.999e-05,2]
[348724574,1736753439649,-502.13186788,9.999e-05,2]
[348724575,1736753439659,-501.96613158,9.999e-05,2]
[348724576,1736753439668,-500.0,9.999e-05,2]
[348724577,1736753439680,-500.0,9.999e-05,2]
[348724578,1736753439690,-500.0,9.999e-05,2]
[348724579,1736753439700,-500.0,9.999e-05,2]
[348724580,1736753439710,-500.0,9.999e-05,2]
[348724581,1736753439720,-500.0,9.999e-05,2]
[348724582,1736753439730,-504.46564412,9.999e-05,2]
[348724583,1736753439740,-500.0,9.999e-05,2]
[348724584,1736753439750,-507.99216678,9.999e-05,2]
[348724585,1736753439760,-500.0,9.999e-05,2]
[348724586,1736753439770,-500.0,9.999e-05,2]
[348724587,1736753439780,-500.0,9.999e-05,2]
[348724588,1736753439791,-500.0,9.999e-05,2]
[348724589,1736753439801,-500.0,9.999e-05,2]
[348724590,1736753439812,-500.0,9.999e-05,2]
[348724591,1736753439821,-500.0,9.999e-05,2]
[348724592,1736753439834,-502.35174852,9.999e-05,2]
[348724593,1736753439844,-337.30517856,9.999e-05,2]
[348724594,1736753439855,-500.0,9.999e-05,2]
[348724595,1736753439865,-500.0,9.999e-05,2]
[348724596,1736753439878,-502.60249091,9.999e-05,2]
[348724597,1736753439888,-501.71080482,9.999e-05,2]
[348724598,1736753439898,-500.0,9.999e-05,2]
[348724599,1736753439910,-500.0,9.999e-05,2]
[348724600,1736753439920,-503.72564011,9.999e-05,2]
[348724601,1736753439934,-509.81295877,9.999e-05,2]
[348724602,1736753439945,-500.0,9.999e-05,2]
[348724603,1736753439955,-500.0,9.999e-05,2]
[348724604,1736753439965,-502.62028118,9.999e-05,2]
[348724605,1736753439975,-501.84773411,9.999e-05,2]
[348724606,1736753439985,-500.0,9.999e-05,2]
[348724607,1736753439995,-505.55386975,9.999e-05,2]
[348724608,1736753440006,-507.16292847,9.999e-05,2]
[348724609,1736753440017,-500.0,9.999e-05,2]
[348724610,1736753440027,-509.72731506,9.999e-05,2]
[348724611,1736753440037,-500.0,9.999e-05,2]
[348724613,1736753440047,-500.0,9.999e-05,2]
[348724615,1736753440057,-500.0,9.999e-05,2]
[348724617,1736753440066,-500.0,9.999e-05,2]
[348724618,1736753440076,-505.81269759,9.999e-05,2]
[348724619,1736753440087,-500.0,9.999e-05,2]
[348724620,1736753440097,-505.66726308,9.999e-05,2]
[348724622,1736753440107,-177.34,9.999e-05,2]
[348724624,1736753440117,-500.0,9.999e-05,2]
[348724625,1736753440127,-500.0,9.999e-05,2]
[348724626,1736753440141,-500.0,9.999e-05,2]
[348724627,1736753440150,-502.62940842,9.999e-05,2]
[348724628,1736753440159,-500.79153498,9.999e-05,2]
[348724629,1736753440169,-500.0,9.999e-05,2]
[348724630,1736753440181,-502.58483258,9.999e-05,2]
[348724631,1736753440190,-503.79345028,9.999e-05,2]
[348724632,1736753440200,-500.0,9.999e-05,2]
[348724633,1736753440210,-500.0,9.999e-05,2]
[348724634,1736753440219,-500.0,9.999e-05,2]
[348724635,1736753440229,-500.0,9.999e-05,2]
[348724636,1736753440239,-500.0,9.999e-05,2]
[348724637,1736753440248,-504.29210305,9.999e-05,2]
[348724638,1736753440258,-500.0,9.999e-05,2]
[348724639,1736753440267,-274.64261685,9.999e-05,2]
[348724640,1736753440277,-504.20960444,9.999e-05,2]
[348724641,1736753440287,-542.80720033,9.999e-05,2]
[348724642,1736753440296,-500.0,9.999e-05,2]
[348724643,1736753440306,-503.36430623,9.999e-05,2]
[348724644,1736753440315,-500.0,9.999e-05,2]
[348724645,1736753440324,-506.94371802,9.999e-05,2]
[348724646,1736753440334,-500.0,9.999e-05,2]
[348724647,1736753440345,-446.07524001,9.999e-05,2]
[348724648,1736753440354,-500.0,9.999e-05,2]
[348724649,1736753440364,-500.0,9.999e-05,2]
[348724650,1736753440373,-508.85630814,9.999e-05,2]
[348724651,1736753440383,-507.19429354,9.999e-05,2]
[348724652,1736753440394,-500.0,9.999e-05,2]
[348724653,1736753440404,-500.0,9.999e-05,2]
[348724654,1736753440413,-501.18733497,9.999e-05,2]
[348724655,1736753440424,-509.46690465,9.999e-05,2]
[348724656,1736753440433,-500.0,9.999e-05,2]
[348724657,1736753440443,-500.0,9.999e-05,2]
[348724658,1736753440452,-534.08182817,9.999e-05,2]
[348724659,1736753440462,-500.0,9.999e-05,2]
[348724660,1736753440472,-500.0,9.999e-05,2]
[348724661,1736753440481,-500.0,9.999e-05,2]